Cogmind - Beta 12 @@@ ROGUE MODE // 2023.03.27 @ 12:23:03 // Winter2019/RPGLIKE Player: ArabianSandBoa Result: Destroyed by G-34 Mercenary with Small Laser Performance ------------- Evolutions (1) 500 Regions Visited (3) 600 Robots Destroyed (65) 325 Value Destroyed (1440) 1440 Prototype IDs (5) 100 Alien Tech Used (0) 0 Bonus (117) 117 TOTAL SCORE: 3082 Bonus ------- High Alert Combat Kills 117 Cogmind --------- Core Integrity 0/600 Matter 37/300 Energy 250/250 System Corruption 0% Temperature Cool (6) Movement Flying (28) Location -9/Materials Parts ------- > --- POWER (1) -------- Ion Engine > --- PROPULSION (6) --- Flight Unit Flight Unit Flight Unit Flight Unit Flight Unit > --- UTILITY (5) ------ Targeting Computer Hardened Light Armor Plating Hacking Suite Authchip [Propulsion] Authchip [Processor] > --- WEAPON (1) ------- Rocket Launcher > --- INVENTORY (1) ---- Protomatter-20 Peak State ------------ > --- POWER ------------ Ion Engine > --- PROPULSION ------- Flight Unit Flight Unit Flight Unit Flight Unit Flight Unit Flight Unit > --- UTILITY ---------- Targeting Computer Hardened Light Armor Plating Hacking Suite Authchip [Propulsion] Authchip [Processor] > --- WEAPON ----------- Advanced Beam Cannon > --- INVENTORY -------- Protomatter [Rating: 24] Favorites ----------- Power Light Ion Engine Engine Light Ion Engine Propulsion Flight Unit Leg Aluminum Leg Flight Unit Flight Unit Utility Heat Sink Device Heat Sink Processor Machine Analyzer Hackware Hacking Suite Protection Hardened Light Armor Plating Weapon Particle Cannon Energy Cannon Particle Cannon Ballistic Gun Assault Rifle Launcher Rocket Launcher Impact Weapon Makeshift Hammer Slashing Weapon Mining Claw Build | -11 -10 -10 -9 ------- Run | Jun Mat Min Mat Slots Evolved 9 | 4 3 1 1 Power . | . . . . Propulsion 5 | 1 3 1 . Utility 4 | 3 . . 1 Weapon . | . . . . Parts Attached 30 | 3 18 3 6 Power 2 | 1 1 . . Engine 2 | 1 1 . . Core . | . . . . Reactor . | . . . . Propulsion 10 | . 8 1 1 Treads . | . . . . Leg . | . . . . Wheel . | . . . . Hover . | . . . . Flight 10 | . 8 1 1 Utility 10 | 2 5 1 2 Device 4 | 2 1 1 . Storage . | . . . . Processor 2 | . 2 . . Hackware 3 | . 2 . 1 Protection 1 | . . . 1 Artifact . | . . . . Weapon 8 | . 4 1 3 Energy Gun . | . . . . Energy Cannon 3 | . 2 . 1 Ballistic Gun 1 | . 1 . . Ballistic Cannon . | . . . . Launcher 2 | . . . 2 Special Weapon . | . . . . Impact Weapon 1 | . . 1 . Slashing Weapon 1 | . 1 . . Piercing Weapon . | . . . . Special Melee Weapon . | . . . . Unidentified Prototypes 1 | . . . 1 Parts Lost 2 | . 1 . 1 Power 1 | . 1 . . Propulsion 1 | . . . 1 Utility . | . . . . Weapon . | . . . . Highest Loss Streak 1 | . 1 . 1 To Critical Strikes . | . . . . Average Slot Usage (%) 87 | . 86 99 95 Engine 10 | . 10 8 7 Flight 25 | . 22 47 44 Device 23 | . 26 8 . Processor 9 | . 10 8 7 Hackware 6 | . 4 17 20 Energy Cannon 3 | . 3 7 . Ballistic Gun 3 | . 4 . . Slashing Weapon 2 | . 3 . . Naked Turns . | . . . . Heaviest Build 14 | 7 10 10 14 Greatest Support 29 | 10 25 29 29 Greatest Overweight (x) 1 | . 1 . . Average Overweight (x) . | . . . . Largest Inventory Capacity 1 | . 1 1 1 Average Capacity . | . . 1 1 Most Carried 1 | . 1 1 1 Average Carried . | . . 1 . Final Capacity 1 | . 1 1 1 Final Carried 1 | . 1 1 1 Class Distribution -------------------- 48% | Scavenger-Mutant 29% | Scavenger-Sprinter 22% | Mutant Dominant Class ---------------- Scavenger-Mutant | -10/Materials Scavenger-Sprinter | -10/Mines Scavenger-Sprinter | -9/Materials Resources | -11 -10 -10 -9 ----------- Run | Jun Mat Min Mat Matter Collected 967 | 275 612 46 34 Remotely . | . . . . Salvage Created 1991 | 198 1392 149 252 Parts 125 | 18 92 5 10 Haulers Intercepted 5 | . 2 . 3 Recyclers Shooed 3 | . 3 . . Parts Field Recycled . | . . . . Retrieved Matter . | . . . . Parts Self-Destructed . | . . . . Prevented . | . . . . Kills | -11 -10 -10 -9 ------- Run | Jun Mat Min Mat Combat Hostiles Destroyed 44 | . 27 11 6 Melee 4 | . 4 . . Guns 15 | . 15 . . Cannons 19 | . 8 11 . AOE 6 | . . . 6 Classes Destroyed 10 | 3 6 1 . Worker 6 | 2 4 . . Tunneler 6 | 5 1 . . Hauler 5 | . 2 . 3 Recycler 6 | 1 4 . 1 Mechanic 1 | . 1 . . Operator 2 | . 2 . . Watcher 3 | . 3 . . Swarmer 11 | . 8 3 . Grunt 25 | . 19 . 6 Assembled 8 | . . 8 . Best Kill Streak 8 | 6 5 6 8 Combat Bots Only 6 | . 5 6 3 Max Kills in Single Turn 2 | 1 1 1 2 Gunslinging . | . . . . Exploded 2 | . . . 2 Melee 1 | . 1 . . Uniques/NPCs Destroyed . | . . . . Combat | -11 -10 -10 -9 -------- Run | Jun Mat Min Mat Damage Taken 1842 | . 1069 393 380 Core 1471 | . 892 314 265 Absorbed by Shields . | . . . . Redirected to Core 1007 | . 552 278 177 Core Remaining (%) 72 | 100 . 44 . Volleys Fired 286 | 23 216 25 22 Largest 1 | 1 1 1 1 Hottest 68 | 20 68 68 33 Shots Fired 285 | 23 215 25 22 Gun 157 | 23 134 . . Cannon 106 | . 81 25 . Launcher 22 | . . . 22 Special . | . . . . Kinetic 157 | 23 134 . . Thermal 106 | . 81 25 . Explosive 22 | . . . 22 Electromagnetic . | . . . . Robot Hit Streak 17 | 5 17 8 6 Robot Miss Streak 6 | 2 6 2 1 Penetration Max . | . . . . Secondary Targets . | . . . . Shots Hit Robots 186 | 16 138 17 15 Core Hits 93 | 9 55 11 18 Critical Kills 1 | . 1 . . Critical Parts Destroyed . | . . . . Critical Strikes 1 | . 1 . . Destroy 1 | . 1 . . Melee Attacks 65 | . 64 . 1 Impact 1 | . . . 1 Slashing 64 | . 64 . . Piercing . | . . . . Sneak Attacks 6 | . 5 . 1 Combat Hostiles . | . . . . Follow-up Attacks . | . . . . Damage Inflicted 4290 | 185 2535 377 1193 Guns 1122 | 185 937 . . Cannons 1013 | . 636 377 . Explosions 1059 | . . . 1059 Melee 1096 | . 962 . 134 Ramming . | . . . . Kinetic 1122 | 185 937 . . Thermal 1013 | . 636 377 . Explosive 1059 | . . . 1059 Electromagnetic . | . . . . Impact 134 | . . . 134 Slashing 962 | . 962 . . Piercing . | . . . . Highest Corruption 2 | . 2 2 . Average Corruption 1 | . 1 2 . Corruption Purged . | . . . . Corruption Blocked . | . . . . Effects 8 | . 4 4 . Matter Fused 4 | . 2 2 . Parts Rejected 1 | . . 1 . Data Loss (minor) 1 | . 1 . . Alerts 1 | . . 1 . Weapon Failures 1 | . 1 . . Overload Shots . | . . . . Overflow Damage 207 | . 85 4 118 Projectiles 4 | . . 4 . Explosions 9 | . . . 9 Melee 194 | . 85 . 109 Knockbacks . | . . . . Impact . | . . . . Kinetic . | . . . . Secondary . | . . . . Self-Inflicted Damage 23 | . . . 23 Shots 1 | . . . 1 Rammed . | . . . . Targets Rammed . | . . . . Kicked . | . . . . Crushed . | . . . . Highest Temperature 327 | . 327 208 230 Average Temperature 91 | . 91 74 117 Received Heat Transfer 717 | . 456 120 141 Effects 2 | . . . 2 Interference 2 | . . . 2 Siege Activations . | . . . . Robots Corrupted . | . . . . Combat Hostiles . | . . . . Parts Fried . | . . . . Impact Corruptions 1 | . . . 1 Robots Melted . | . . . . Combat Hostiles . | . . . . Parts Melted 2 | . 1 1 . Heat Transferred 1665 | . 1036 629 . Parts Sabotaged . | . . . . Parts Stolen . | . . . . Parts Stripped . | . . . . Power Chain Reactions . | . . . . Missiles Intercepted . | . . . . Alert | -11 -10 -10 -9 ------- Run | Jun Mat Min Mat Peak Influence 889 | 40 889 466 424 Initial 336 | . 26 336 181 Average 350 | 17 373 389 290 Maximum Alert Level 3 | . 3 2 2 Low Security (%) 40 | 100 42 . 26 Level 1 19 | . 14 50 57 Level 2 27 | . 27 49 16 Level 3 12 | . 15 . . Level 4 . | . . . . Level 5 . | . . . . High Security . | . . . . Max Security . | . . . . Squads Dispatched 10 | . 7 . 3 Investigation 8 | . 6 . 2 Extermination . | . . . . Reinforcement 2 | . 1 . 1 Assault . | . . . . Garrison . | . . . . Intercept . | . . . . Searches Triggered . | . . . . Construction Impeded 1 | . . . 1 Haulers Reinforced . | . . . . Active Scanning Responses . | . . . . Cargo Convoy Interrupts . | . . . . Stealth | -11 -10 -10 -9 --------- Run | Jun Mat Min Mat Distress Signals 2 | . 2 . . Communications Jammed . | . . . . Distress Signals . | . . . . Times Spotted 104 | . 50 46 8 Peak Tracking Total 20 | . 5 20 5 Tactical Retreats 9 | . 3 6 . Traps | -11 -10 -10 -9 ------- Run | Jun Mat Min Mat Traps Triggered 4 | . 4 . . Indirectly . | . . . . Trap Hack Attempts . | . . . . Triggered . | . . . . Disarmed . | . . . . Reprogrammed . | . . . . Reused . | . . . . Traps Extracted . | . . . . Installed 1 | . . 1 . Triggered . | . . . . Machines | -11 -10 -10 -9 ---------- Run | Jun Mat Min Mat Machines Disabled 28 | . 24 2 2 Max in Single Turn 2 | . 2 1 2 Machines Repaired . | . . . . Machines Sabotaged . | . . . . Overloaded Fab Kills . | . . . . Hacking | -11 -10 -10 -9 --------- Run | Jun Mat Min Mat Machines Accessed 8 | . 6 . 2 Terminals 7 | . 5 . 2 Fabricators . | . . . . Repair Stations . | . . . . Recycling Units 1 | . 1 . . Scanalyzers . | . . . . Garrison Access . | . . . . Total Hacks 36 | . 25 . 11 Successful 22 | . 15 . 7 Failed 14 | . 10 . 4 Catastrophic 2 | . 1 . 1 Database Lockouts . | . . . . Manual 23 | . 20 . 3 Terminals 31 | . 20 . 11 Fabricators . | . . . . Repair Stations . | . . . . Recycling Units 5 | . 5 . . Scanalyzers . | . . . . Garrison Access . | . . . . Terminal Hacks 11 | . 6 . 5 Robot Analysis 4 | . 3 . 1 Prototype ID Bank 2 | . 1 . 1 Emergency Access Points 2 | . 1 . 1 Unreport Threat 2 | . . . 2 Hauler Manifests 1 | . 1 . . Fabricator Hacks . | . . . . Repair Station Hacks . | . . . . Recycling Unit Hacks 1 | . 1 . . Report Inventory 1 | . 1 . . Scanalyzer . | . . . . Garrison Access Hacks . | . . . . Unauthorized Hacks 10 | . 8 . 2 Terminals 7 | . 5 . 2 Botnet 7 | . 5 . 2 Fabricators . | . . . . Repair Stations . | . . . . Recycling Units 3 | . 3 . . Reject 1 | . 1 . . Mask 1 | . 1 . . Tunnel 1 | . 1 . . Scanalyzers . | . . . . Garrison Access . | . . . . Data Cores Recovered . | . . . . Used . | . . . . Hacking Detections 8 | . 6 . 2 Full Trace Events 7 | . 5 . 2 Feedback Events . | . . . . Feedback Blocked . | . . . . Robot Schematics Acquired . | . . . . Robots Built . | . . . . Authchips . | . . . . Time . | . . . . Total Robot Build Rating . | . . . . Part Schematics Acquired . | . . . . Parts Built . | . . . . Authchips . | . . . . Time . | . . . . Total Part Build Rating . | . . . . Parts Repaired . | . . . . Time . | . . . . Parts Recycled . | . . . . Recycled Matter . | . . . . Retrieved Matter . | . . . . Retrieved Components . | . . . . Parts Scanalyzed . | . . . . Part Schematics Acquired . | . . . . Parts Damaged . | . . . . Bothacking | -11 -10 -10 -9 ------------ Run | Jun Mat Min Mat Used RIF Installer . | . . . . Robots Hacked . | . . . . Non-combat . | . . . . Combat . | . . . . Robot Hacks Applied . | . . . . Relay Couplers Released . | . . . . Fabnet Peak Effective % . | . . . . Robots Rewired . | . . . . Allies Hacked . | . . . . Hacks Repelled . | . . . . Allies | -11 -10 -10 -9 -------- Run | Jun Mat Min Mat Total Allies 3 | . . 3 . Largest Group 3 | . . 3 . Highest-Rated Group 40 | . . 40 . Highest-Rated Ally 16 | . . 16 . Total Orders . | . . . . Ally Attacks 19 | . . 19 . Total Damage 204 | . . 204 . Kills 3 | . . 3 . Allies Corrupted . | . . . . Allies Melted 1 | . . 1 . Intel | -11 -10 -10 -9 ------- Run | Jun Mat Min Mat Robot Analysis Total 4 | . 3 . 1 Derelict Logs Recovered 1 | . . 1 . Drone Launches . | . . . . Drone Recoveries . | . . . . Exploration | -11 -10 -10 -9 ------------- Run | Jun Mat Min Mat Turns Passed 2091 | 117 1673 187 114 Spaces Moved 2056 | 50 1506 387 113 Core 521 | . 521 . . Treads . | . . . . Legs 50 | 50 . . . Wheels . | . . . . Hover . | . . . . Flight 1485 | . 985 387 113 Fastest Speed 25 | 120 28 25 25 Average Speed 40 | 120 42 26 25 Slowest Speed 120 | 120 100 28 28 Overloaded Moves . | . . . . Propulsion Burnouts . | . . . . Robots Hopped 12 | . 5 7 . Cave-ins Triggered . | . . . . Exploration Rate (%) 50 | 4 96 78 23 Regions Visited 3 Branch Regions 1 Pre-discovered Areas 1 | . 1 . . Known Exits Taken . | . . . . Unknown Exits Taken 3 | 1 1 1 . Scrap Searched 1 | . . 1 . Spaces Dug 1 | . 1 . . Terrain Destroyed 202 | . 50 . 152 Melee 1 | . 1 . . Projectile . | . . . . AOE 201 | . 49 . 152 Terrain Rammed . | . . . . Walls Destroyed . | . . . . Machines Disabled . | . . . . Actions | -11 -10 -10 -9 --------- Run | Jun Mat Min Mat Total 2882 | 83 2186 437 176 Wait 396 | 7 337 24 28 Move 2029 | 49 1495 372 113 Hop 12 | . 5 7 . Pick Up 2 | . 1 . 1 Fast Attach 25 | 3 15 3 4 Attach 1 | . . . 1 Detach . | . . . . Swap 4 | . 3 . 1 Drop 18 | 1 11 1 5 Fire 286 | 23 216 25 22 Melee 65 | . 64 . 1 Ram . | . . . . Kick . | . . . . Crush . | . . . . Escape Stasis . | . . . . Rewire . | . . . . Trap 1 | . . 1 . Miscellaneous 43 | . 39 4 . Route ------- -11/Junkyard -10/Materials (discovered 4 exits: *Mat x3 / [*Min]) -10/Mines -9/Materials History --------- Turn | Location | Event 1 | -11/Junkyard | Upgraded with Propulsion slot (x1) 1 | -11/Junkyard | Upgraded with Utility slot (x3) 3 | -11/Junkyard | Discovered new exit (range 3) 118 | -11/Junkyard | Entered Materials 301 | -10/Materials | Build established: Mutant 513 | -10/Materials | Discovered new exit (range 16) 765 | -10/Materials | Build established: Scavenger-Mutant 780 | -10/Materials | Core integrity fell below 50% 856 | -10/Materials | Reached level 2 872 | -10/Materials | Upgraded with Propulsion slot (x1) 1201 | -10/Materials | Reached level 3 1205 | -10/Materials | Upgraded with Propulsion slot (x1) 1265 | -10/Materials | Discovered new exit (range 15) 1477 | -10/Materials | Discovered new exit (range 16) 1527 | -10/Materials | Discovered new exit (range 8) 1538 | -10/Materials | Reached level 4 1546 | -10/Materials | Upgraded with Propulsion slot (x1) 1791 | -10/Materials | Entered Mines 1792 | -10/Mines | Assembled infested the area 1793 | -10/Mines | Learned Materials non-interactive machine intel 1810 | -10/Mines | Build established: Scavenger-Sprinter 1816 | -10/Mines | A weapon hastily lodged in a ceiling crevice suddenly fell to the ground 1822 | -10/Mines | Assisted by bots powering up and referring to "LRC-V3" 1859 | -10/Mines | Found a hidden stash of uninstalled traps 1877 | -10/Mines | Reached level 5 1889 | -10/Mines | Upgraded with Propulsion slot (x1) 1975 | -10/Mines | Discovered new exit (range 12) 1978 | -10/Mines | Entered Materials 1979 | -9/Materials | Loaded intel: 29 non-interactive machine locations 1979 | -9/Materials | Core integrity fell below 50% 1980 | -9/Materials | Reached level 6 1992 | -9/Materials | Upgraded with Utility slot (x1) 2043 | -9/Materials | Core integrity fell below 20% 2092 | -9/Materials | Destroyed by G-34 Mercenary with Small Laser Last Messages --------------- Awaiting botnet instructions. >>Prototypes Downloading prototype IDs... Imp. Flight Unit Prc. Beam Rifle >>Access(Emergency) Found 1 emergency access door: (56,58) Map updated. >>Alert(Purge) Purged threat record, alert level lowered. >>Alert(Purge) Purged threat record, alert level lowered. 02078_ ALERT: Suspicious activity at Terminal M009. Dispatching Investigation squad. 02079_ K-01 Serf collects debris. 02080_ U-05 Engineer lays Concrete. 02085_ K-01 Serf collects debris. 02091_ Destroyed Heat Sink. 02091_ G-34 Mercenary destroyed. Map ----- +----------------------------------------------------+ | ????????????????????????????????????????????????? | | ????????????????????????????????????????????????? | | ????????????????????????????????????????????????? | | ????????????????????????????????????????????????? | | ????????????????????????????????????????????????? | | ????????????????????????????????????????????????? | | ????????????????????????????????????????????????? | | ????????????????????????????????????????????????? | | ????????????????????????????????????????????????? | | ????????????????????????????????????????????????? | | ????????????????????????????????????????????????? | | ????????????????????????????????????????????????? | | ????????????????????????????????????????????????? | | ????????????????????????????????????????????????? | | ????????????????????????????????????????????????? | | ??????????###???????????????????????????????????? | | ??????????# """????????????????????????????????? | | ????###???# """????????????????????? ??????????? | | ???? ??# """??????????????####? g #?????????? | | ???? ?# ?????????????# # #?????????? | | ????? # ! ????#####???# #?????????? | | ??????# # ????#"""#### ????????? | | ??????# #####"T"# ????????? | | ??????# g ???????? | | ??????# / ???????? | | ??????# /// Y @ #????????? | | ??????### // ######### #?????????? | | ????????# #????## #### ##??????????? | | ????????### ##???????###????????????????? | | ??????????# # #???????????????????????????? | | ??######### #########???????????????????? | | ??# """ #???????????????????? | | ??# """"" #???????????????????? | | ??# """"" # # #???????????????????? | | ??# """"" # # #???????????????????? | | ??# """ / T + """ """ #???????????????????? | | ??# # # """ """ #???????????????????? | | ??# # # """ """?????????????????????? | | ??# #######? ??????????????????????? | | #####+#######?#####?######??????????????????????? | | !!! ## ?? #? ? ??????????????????????? | | !!! ## """ # ?????????????????????? | | !! ## """ # ?????????????????????? | | # """ # ?????????????????????? | | """ "" ## # ??????????????????????? | | " "" ## """ # ??????????????????????? | | "" ## """ # ???????????????????????? | | ## """ # ????????????????????????? | | # #####* # ???????##########?????????? | | ### #### ###+####### #?????????? | +----------------------------------------------------+ Best States ------------- Heat Dissipation 43 Energy Generation 10 Energy Capacity 250 Matter Stores 300 Matter Capacity 300 Sight Range 16 Terrain Scan Range 16 Terrain Scan Density 10 Armor Coverage 150 Evasion (%) 65 Targeting Accuracy 5 Offensive Hacking 10 Authchip Count 2 Item Schematics ----------------- None Robot Schematics ------------------ None Fabricated ------------ Nothing Alien Tech Used ----------------- None Achievements -------------- None Challenges ------------ None RPGLIKE | -11 -10 -10 -9 --------- Run | Jun Mat Min Mat Levels Raised 5 | . 3 1 1 XP Earned 11659 | 3000 5331 923 2405 XP Spent 10460 | 2900 4250 1700 1610 Upgrades 16 | 4 7 1 4 Propulsion Slot 5 | 1 3 1 . Utility Slot 4 | 3 . . 1 Heat Dissipation 3 | . . . 3 Mass Support 1 | . 1 . . Inventory Capacity 1 | . 1 . . Ranged Accuracy 1 | . 1 . . TH Damage % 1 | . 1 . . Protomatter Created 468 | . 401 36 31 Integrity Restored 925 | . 856 69 . Core 871 | . 802 69 . Parts 54 | . 54 . . Protomatter Decayed 198 | . 129 69 . Game ------ Seed AssembledReactionAxe Manual? 1 Play Time 00:29:50 Cumulative 504.5 hours Start 2023.03.27 @ 11:51:15 End 2023.03.27 @ 12:23:03 Sessions 1 Manual Loads 0 Difficulty Rogue Special Mode Winter2019/RPGLIKE Game No. 539 Rogue 539 Adventurer 0 Explorer 0 Win Type - Total 1 Types 1/0/0/0/0/0/0/0/0 Lore% 61 Gallery% 82 Achievement% 65 Wizard Run 0 Options --------- ASCII 0 Keyboard 0 Movement Mouse Keybinds 0 Fullscreen 2 Font 24/Smallcaps Map View 76x50 Tactical HUD 1 Map Filters NONE Filters NONE Steam 1 RUN: beb7b027-6f01-40b5-9375-2ef8d3c705b7